lending/lending_fUSD_20241212
["ID","MTS","AMOUNT","RATE_DAILY","PERIOD"]
[345104010,1734019837400,-500.0,0.000243,2]
[345104012,1734019837409,-747.57922137,0.000243,2]
[345104014,1734019837420,-500.0,0.000243,2]
[345104016,1734019837433,-500.0,0.000243,2]
[345104018,1734019837442,-500.0,0.000243,2]
[345104020,1734019837452,-500.0,0.000243,2]
[345104022,1734019837462,-500.0,0.000243,2]
[345104024,1734019837471,-930.36714812,0.000243,2]
[345104026,1734019837480,-800.0,0.000243,2]
[345104028,1734019837489,-800.0,0.000243,2]
[345104030,1734019837499,-800.0,0.000243,2]
[345104032,1734019837512,-800.0,0.000243,2]
[345104034,1734019837520,-800.0,0.000243,2]
[345104036,1734019837530,-800.0,0.000243,2]
[345104038,1734019837539,-800.0,0.000243,2]
[345104040,1734019837548,-800.0,0.000243,2]
[345104042,1734019837558,-800.0,0.000243,2]
[345104044,1734019837567,-800.0,0.000243,2]
[345104046,1734019837576,-800.0,0.000243,2]
[345104048,1734019837585,-800.0,0.000243,2]
[345104050,1734019837597,-1297.50942926,0.000243,2]
[345104052,1734019837607,-1195.96798597,0.00024323,2]
[345104054,1734019837617,-2500.0,0.00024349,2]
[345104055,1734019837627,-500.0,0.0002438,2]
[345104058,1734019837636,-500.0,0.0002438,2]
[345104060,1734019837647,-500.0,0.0002438,2]
[345104062,1734019837657,-500.0,0.0002438,2]
[345104063,1734019837667,-500.0,0.0002438,2]
[345104066,1734019837677,-1114.22,0.0002438,2]
[345104067,1734019837689,-706.55,0.0002438,2]
[345104069,1734019837699,-528.94,0.0002438,2]
[345104071,1734019837709,-500.0,0.0002438,2]
[345104073,1734019837719,-1965.83,0.0002438,2]
[345104076,1734019837729,-500.0,0.0002438,2]
[345104079,1734019837739,-500.0,0.0002438,2]
[345104082,1734019837748,-500.0,0.0002438,2]
[345104085,1734019837758,-500.0,0.0002438,2]
[345104088,1734019837767,-500.0,0.0002438,2]
[345104091,1734019837777,-500.0,0.0002438,2]
[345104094,1734019837786,-500.0,0.0002438,2]
[345104097,1734019837796,-500.0,0.0002438,2]
[345104100,1734019837806,-500.0,0.0002438,2]
[345104102,1734019837815,-500.0,0.0002438,2]
[345104104,1734019837825,-500.0,0.0002438,2]
[345104106,1734019837834,-25000.0,0.00024381,2]
[345104108,1734019837844,-2601.6078,0.00024384,2]
[345104110,1734019837856,-413.45188288,0.000244,2]
[345104113,1734019837866,-157.89295106,0.000244,2]
[345104116,1734019837876,-207.04356193,0.00024421,2]
[345104119,1734019837887,-500.0,0.00024421,2]
[345104122,1734019837897,-500.0,0.00024421,2]
[345104125,1734019837907,-500.0,0.00024421,2]
[345104128,1734019837917,-480.27623259,0.00024421,2]
[345104131,1734019837928,-500.0,0.00024421,2]
[345104134,1734019837939,-728.64,0.00024422,2]
[345104137,1734019837949,-435.5,0.00024422,2]
[345104140,1734019837959,-300.0,0.00024422,2]
[345104143,1734019837968,-1253.44,0.00024422,2]
[345104146,1734019837977,-364.47,0.00024422,2]
[345104149,1734019837986,-435.5,0.00024422,2]
[345104152,1734019837996,-150.0,0.00024423,2]
[345104155,1734019838006,-150.0,0.00024423,2]
[345104158,1734019838016,-150.0,0.00024423,2]
[345104161,1734019838025,-150.0,0.00024423,2]
[345104164,1734019838034,-2500.0,0.00024434,2]
[345104167,1734019838046,-5000.0,0.00024474,2]
[345104170,1734019838055,-1195.96798595,0.00024481,2]
[345104173,1734019838065,-413.45188284,0.00024483,2]
[345104176,1734019838074,-25000.0,0.00024484,2]
[345104179,1734019838084,-425.66,0.00024486,2]
[345104182,1734019838093,-500.0,0.000245,2]
[345104185,1734019838105,-1142.6454564,0.000245,2]
[345104187,1734019838114,-685.65,0.00024537,2]
[345104189,1734019838123,-36108.2117572,0.00024548,2]
[345104193,1734019838142,-475.62257105,0.0002438,2]
[345104195,1734019838153,-26.64742895,0.0002438,2]
[345104197,1734019838163,-1062.79189015,0.00024548,2]
[345104199,1734019838175,-4039.30444594,0.00024548,2]
[345104202,1734019838187,-27623.98696186,0.00024548,2]
[345104204,1734019838202,-13006.86354485,0.00024548,2]
[345104206,1734019838211,-413.45188284,0.00024567,2]
[345104208,1734019838221,-500.0,0.00024573,2]
[345104210,1734019838230,-500.0,0.00024573,2]
[345104212,1734019838239,-500.0,0.00024573,2]
[345104214,1734019838248,-500.0,0.00024573,2]
[345104216,1734019838258,-500.0,0.00024573,2]
[345104218,1734019838267,-500.0,0.00024573,2]
[345104220,1734019838277,-636.46,0.00024573,2]
[345104222,1734019838287,-5000.0,0.00024586,2]
[345104224,1734019838296,-7371.3,0.00024622,2]
[345104226,1734019838305,-1195.96798595,0.00024639,2]
[345104228,1734019838315,-218.795,0.00024647,2]
[345104230,1734019838323,-1250.0,0.00024647,2]
[345104232,1734019838332,-5000.0,0.00024648,2]
[345104234,1734019838341,-413.45188284,0.0002465,2]
[345104236,1734019838353,-157.89295106,0.0002465,2]
[345104238,1734019838362,-500.0,0.00024654,2]
[345104240,1734019838371,-500.0,0.00024654,2]
[345104242,1734019838380,-500.0,0.00024654,2]
[345104244,1734019838390,-500.0,0.00024654,2]
[345104246,1734019838400,-1114.22,0.00024654,2]
[345104247,1734019838409,-706.55,0.00024654,2]
[345104248,1734019838419,-528.94,0.00024654,2]
[345104249,1734019838428,-500.0,0.00024654,2]
[345104250,1734019838438,-1965.83,0.00024654,2]
[345104251,1734019838447,-500.0,0.00024654,2]
[345104252,1734019838458,-500.0,0.00024654,2]
[345104253,1734019838467,-500.0,0.00024654,2]
[345104254,1734019838477,-500.0,0.00024654,2]
[345104255,1734019838487,-500.0,0.00024654,2]
[345104257,1734019838496,-500.0,0.00024654,2]
[345104259,1734019838506,-500.0,0.00024654,2]
[345104261,1734019838515,-500.0,0.00024654,2]
[345104263,1734019838524,-500.0,0.00024654,2]
[345104265,1734019838533,-334.58,0.00024654,2]
[345104267,1734019838545,-153.7,0.00024654,2]
[345104269,1734019838555,-2000.0,0.00024657,120]
[345104271,1734019838564,-2000.0,0.00024657,120]
[345104273,1734019838575,-2000.0,0.00024657,120]
[345104275,1734019838585,-2000.0,0.00024657,120]
[345104277,1734019838598,-2000.0,0.00024657,120]
[345104279,1734019838608,-2000.0,0.00024657,120]
[345104281,1734019838618,-2000.0,0.00024657,120]
[345104283,1734019838628,-2000.0,0.00024657,120]
[345104284,1734019838638,-2000.0,0.00024657,120]
[345104286,1734019838648,-1000.0,0.00024658,2]
[345104289,1734019838658,-25000.0,0.0002468,2]
[345104291,1734019838668,-400.0,0.000247,2]
[345104293,1734019838678,-200.0,0.000247,2]
[345104295,1734019838687,-250.0,0.000247,2]
[345104297,1734019838696,-1200.0,0.000247,2]
[345104298,1734019838706,-413.45188284,0.00024733,2]
[345104300,1734019838715,-1195.96798595,0.00024797,2]
[345104302,1734019838724,-8541.09869299,0.000248,2]
[345104304,1734019838734,-685.65,0.00024811,2]
[345104306,1734019838743,-413.45188284,0.00024817,2]
[345104308,1734019838753,-150.0,0.0002484,120]
[345104310,1734019838762,-500.0,0.00024847,2]
[345104312,1734019838772,-500.0,0.00024847,2]
[345104314,1734019838781,-388.16498495,0.00024847,2]
[345104316,1734019838790,-500.0,0.00024847,2]
[345104318,1734019838800,-500.0,0.00024847,2]
[345104320,1734019838809,-500.0,0.00024847,2]
[345104322,1734019838818,-636.46,0.00024847,2]
[345104324,1734019838827,-8541.09869298,0.0002485,2]
[345104326,1734019838840,-1000.0,0.00024875,2]
[345104328,1734019838853,-1000.0,0.00024875,2]
[345104330,1734019838863,-1000.0,0.00024875,2]
[345104332,1734019838873,-1000.0,0.00024875,2]
[345104334,1734019838882,-1000.0,0.00024875,2]
[345104336,1734019838892,-1000.0,0.00024875,2]
[345104338,1734019838903,-1000.0,0.00024875,2]
[345104340,1734019838912,-1000.0,0.00024875,2]
[345104342,1734019838923,-1000.0,0.00024875,2]
[345104344,1734019838938,-1000.0,0.00024875,2]
[345104346,1734019838948,-1000.0,0.00024875,2]
[345104348,1734019838958,-1000.0,0.00024875,2]
[345104350,1734019838968,-1000.0,0.00024875,2]
[345104351,1734019838977,-1000.0,0.00024875,2]
[345104354,1734019838988,-1000.0,0.00024875,2]
[345104355,1734019838997,-1000.0,0.00024875,2]
[345104357,1734019839007,-967.0971,0.00024875,2]
[345104359,1734019839017,-36215.19348615,0.0002488,5]
[345104362,1734019839034,-33784.80651385,0.0002488,5]
[345104364,1734019839044,-413.45188284,0.000249,2]
[345104366,1734019839054,-2000.0,0.000249,2]
[345104368,1734019839063,-14275.1902155,0.000249,10]
[345104379,1734019839158,-502.27,0.00024654,2]
[345104381,1734019839167,-9510.4964,0.000249,10]
[345104389,1734019839246,-59.491,0.000249,10]
[345104392,1734019839265,-921.00834,0.000249,10]
[345104395,1734019839281,-163885.90678719,0.000249,10]
[345104397,1734019839292,-351.40752856,0.000249,10]
[345104400,1734019839307,-100337.61614283,0.000249,10]
[345104402,1734019839319,-11165.55883838,0.000249,10]
[345104404,1734019839330,-136536.57152409,0.000249,10]
[345104406,1734019839339,-243.58594625,0.000249,2]
[345104408,1734019839351,-157.89295106,0.000249,2]
[345104410,1734019839360,-12346.67983943,0.000249,7]
[345104412,1734019839372,-20428.0,0.000249,7]
[345104476,1734019840051,-1238.94144549,0.000249,7]
[345104485,1734019840139,-3111.42809561,0.000249,7]
[345104630,1734019842463,-3858.0779201,0.000249,7]
[345104632,1734019842475,-6120.6,0.000249,7]
[345104647,1734019842624,-1070.90946925,0.000249,7]
[345104650,1734019842641,-344.90015907,0.000249,7]
[345104652,1734019842652,-560.28688,0.000249,7]
[345104681,1734019843162,-4911.58049448,0.000249,7]
[345104688,1734019843216,-906.26521122,0.000249,7]
[345104690,1734019843228,-1236.6,0.000249,7]
[345104695,1734019843390,-31645.73048535,0.000249,7]
[345104697,1734019843399,-268.13935574,0.000249,2]
[345104699,1734019843409,-8541.09869298,0.000249,2]
[345104701,1734019843418,-1250.0,0.00024905,2]
[345104703,1734019843428,-500.0,0.00024928,2]
[345104705,1734019843437,-439.69127314,0.00024928,2]
[345104707,1734019843446,-500.0,0.00024928,2]
[345104709,1734019843454,-500.0,0.00024928,2]
[345104711,1734019843464,-1114.22,0.00024928,2]
[345104713,1734019843473,-706.55,0.00024928,2]
[345104715,1734019843482,-528.94,0.00024928,2]
[345104717,1734019843491,-500.0,0.00024928,2]
[345104719,1734019843501,-1965.83,0.00024928,2]
[345104721,1734019843511,-500.0,0.00024928,2]
[345104723,1734019843520,-500.0,0.00024928,2]
[345104725,1734019843529,-500.0,0.00024928,2]
[345104727,1734019843538,-500.0,0.00024928,2]
[345104729,1734019843547,-500.0,0.00024928,2]
[345104731,1734019843556,-500.0,0.00024928,2]
[345104732,1734019843566,-500.0,0.00024928,2]
[345104735,1734019843575,-500.0,0.00024928,2]
[345104736,1734019843585,-2000.0,0.00024928,120]
[345104739,1734019843594,-502.27,0.00024928,2]
[345104741,1734019843607,-1195.96798595,0.00024955,2]
[345104743,1734019843617,-150.0,0.0002497,2]
[345104744,1734019843627,-994.4,0.0002497,2]
[345104746,1734019843636,-500.0,0.00024973,2]
[345104749,1734019843646,-274.03,0.0002498,30]
[345104750,1734019843655,-150.0,0.0002498,120]
[345104753,1734019843666,-150.5,0.0002499,30]
[345104754,1734019843676,-2000.0,0.0002499,2]
[345104757,1734019843685,-2066.32,0.0002499,7]
[345104759,1734019843695,-218.795,0.0002499,2]
[345104760,1734019843705,-2737.08414343,0.00024998,2]
[345104763,1734019843715,-666.0,0.00024999,2]
[345104764,1734019843724,-300.0,0.00024999,10]
[345104767,1734019843734,-300.0,0.00024999,10]
[345104768,1734019843744,-300.0,0.00024999,10]
[345104770,1734019843753,-300.0,0.00024999,10]
[345104772,1734019843763,-300.0,0.00024999,10]
[345104774,1734019843772,-300.0,0.00024999,10]
[345104776,1734019843782,-300.0,0.00024999,10]
[345104778,1734019843791,-300.0,0.00024999,10]
[345104780,1734019843801,-500.0,0.00024999,2]
[345104782,1734019843810,-462.79978727,0.00024999,2]
[345104784,1734019843820,-2624013.55059488,0.00025,120]
[345104787,1734019843835,-14351.0,0.00025,120]
[345104795,1734019843907,-1595.07476,0.00025,120]
[345104801,1734019843963,-1634.92472054,0.00025,120]
[345104947,1734019846079,-407.63923337,0.000249,2]
[345104949,1734019846089,-264701.44536533,0.00025,120]
[345104951,1734019846105,-26781.88796555,0.00025,120]
[345104953,1734019846117,-2912.69236044,0.00025,120]
[345104956,1734019846129,-8025.13157456,0.00025,120]
[345104958,1734019846141,-64231.73618865,0.00025,120]
[345104960,1734019846153,-977271.02119279,0.00025,120]
[345104962,1734019846167,-50989.99999997,0.00025,120]
[345104964,1734019846178,-268.43442885,0.00025,120]
[345104976,1734019846280,-332.22411868,0.00025,120]
[345104980,1734019846292,-35769.99999993,0.00025,120]
[345104989,1734019846340,-29065.46315341,0.00025,120]
[345105188,1734019883073,172.248092,0.00010958,2]
[345105189,1734019883358,172.248092,0.00010958,2]
[345105190,1734019883685,172.248092,0.00010958,2]
[345105191,1734019883982,172.248092,0.00013039,2]
[345105192,1734019884274,172.248092,0.00013663,2]
[345105193,1734019884574,172.248092,0.00013698,2]
[345105194,1734019884900,172.248092,0.00013899,2]
[345105195,1734019885181,172.248092,0.00014999,2]
[345105196,1734019885476,172.248092,0.00015054,2]
[345105197,1734019885764,172.248092,0.00015699,2]
[345105199,1734019948532,362.02,0.00010137,2]
[345105200,1734019948946,362.02,0.00016813,2]
[345105206,1734020708953,1000000.0,0.0001,2]
[345105207,1734020708976,1000000.0,0.0001,2]
[345105208,1734020709000,1000000.0,0.0001,2]
[345105210,1734020762326,37171.0,9.589e-05,2]
[345105211,1734020762367,15582.0,9.589e-05,2]
[345105212,1734020762495,58162.0,9.589e-05,2]
[345105213,1734020830125,300.0,9.4e-05,3]
[345105214,1734020832247,700.0,9.5e-05,3]
[345105215,1734020834369,1100.0,9.6e-05,3]
[345105216,1734020841115,-2250.93881146,9.606e-05,2]
[345105217,1734020841291,-2665.73676311,9.606e-05,2]
[345105218,1734020843111,-1190.74023338,9.606e-05,2]
[345105231,1734020945091,-30374.58419205,9.606e-05,2]
[345105232,1734020945112,-1500.0,9.7e-05,3]
[345105233,1734020945134,-1900.0,9.8e-05,3]
[345105234,1734020945155,-300.0,9.9e-05,3]
[345105235,1734020945180,-159.791776,9.973e-05,2]
[345105236,1734020945200,-500.0,9.973e-05,2]
[345105237,1734020945221,-666.0,9.999e-05,2]
[345105238,1734020945242,-275.58624807,9.999e-05,2]
[345105239,1734020945264,-8766.66342388,0.0001,2]
[345105240,1734020946108,-421009.9404,0.0001,2]
[345105241,1734020946136,-54923.19154,0.0001,2]
[345105242,1734020949108,-136753.5806,0.0001,2]
[345105243,1734020952103,-7542.871154,0.0001,2]
[345105244,1734020958103,-1000.0,9.999e-05,2]
[345105245,1734020958126,-236.45252162,9.999e-05,2]
[345105246,1734020958148,-39981.53897838,0.0001,2]
[345105247,1734020958177,-92265.45748,0.0001,2]
[345105249,1734020967106,-277625.2584,0.0001,2]
[345105250,1734020968109,-30425.14272,0.0001,2]
[345105251,1734020970137,-27668.07932,0.0001,2]
[345105275,1734021032159,-500.0,9.973e-05,2]
[345105277,1734021032169,-25.00000005,9.999e-05,2]
[345105281,1734021032215,-274.99999995,9.999e-05,2]
[345105282,1734021032224,-150.0,9.999e-05,2]
[345105283,1734021032234,-533.15000005,0.0001,2]
[345105284,1734021032245,-2810.50453827,0.0001,2]
[345105285,1734021032256,-537.5,0.0001,2]
[345105286,1734021032383,-146928.233529,0.0001,2]
[345105287,1734021032401,-561.3509,0.0001,2]
[345105288,1734021032413,-13668.70130712,0.0001,2]
[345105289,1734021032447,-13613.60001983,0.0001,2]
[345105290,1734021032459,-86534.82511885,0.0001,2]
[345105291,1734021032471,-39673.91165637,0.0001,2]
[345105292,1734021032505,-30687.14141082,0.0001,2]
[345105293,1734021035360,-765.0999996,0.0001,2]
[345105294,1734021035373,-836.0,0.0001,2]
[345105295,1734021035422,-790.200695,0.0001,2]
[345105296,1734021035434,-604.51928066,0.0001,2]
[345105360,1734021038166,-515.36922047,0.0001,2]
[345105361,1734021038177,-2143.03089,0.0001,2]
[345105362,1734021038223,-87869.46557373,0.0001,2]
[345105363,1734021038235,-14235.85199795,0.0001,2]
[345105364,1734021038248,-677.91241655,0.0001,2]
[345105365,1734021038340,-20394.7543592,0.0001,2]
[345105366,1734021038355,-251415.92333812,0.0001,2]
[345105367,1734021038366,-14196.99371352,0.0001,2]
[345105368,1734021038377,-6347.27982993,0.0001,2]
[345105369,1734021038390,-290852.24359514,0.0001,2]
[345105370,1734021038406,-327.82520362,0.0001,2]
[345105371,1734021038419,-3631.83353575,0.0001,2]
[345105372,1734021038431,-20855.14761687,0.0001,2]
[345105373,1734021038443,-22134.27187373,0.0001,2]
[345105374,1734021038455,-11437.1499,0.0001,2]
[345105375,1734021038466,-66394.24238081,0.0001,2]
[345105376,1734021038482,-9251299.27113525,0.0001,2]
[345105377,1734021038492,-6459.21448866,0.0001,2]
[345105378,1734021038501,-300.0,0.0001,3]
[345105379,1734021038511,-52911.5391079,0.0001,2]
[345105380,1734021038521,-22611.46713267,0.0001,2]
[345105381,1734021038530,-2607.4405038,0.0001,2]
[345105382,1734021038540,-8017.4295418,0.0001,2]
[345105383,1734021038550,-290.48430208,0.0001,2]
[345105384,1734021038559,-173.22292507,0.0001,2]
[345105386,1734021038568,-343.0,0.000101,2]
[345105387,1734021038578,-342.0,0.000101,2]
[345105388,1734021038587,-342.0,0.000101,2]
[345105389,1734021038597,-342.0,0.000101,2]
[345105390,1734021038606,-1000.0,0.00010521,2]
[345105391,1734021038615,-315.78590215,0.000109,2]
[345105392,1734021038624,-1308.70134818,0.0001096,2]
[345105393,1734021038633,-1308.70134818,0.0001096,2]
[345105394,1734021038647,-1308.70134818,0.0001096,2]
[345105395,1734021038656,-1308.70134818,0.0001096,2]
[345105396,1734021038666,-1308.70134818,0.0001096,2]
[345105397,1734021038676,-1308.70134818,0.0001096,2]
[345105398,1734021038685,-1308.70134818,0.0001096,2]
[345105399,1734021038694,-1308.70134818,0.0001096,2]
[345105400,1734021038703,-1308.70134818,0.0001096,2]
[345105401,1734021038713,-1308.70134818,0.0001096,2]
[345105402,1734021038723,-1308.70134818,0.0001096,2]
[345105403,1734021038731,-1308.70134818,0.0001096,2]
[345105404,1734021038741,-1308.70134818,0.0001096,2]
[345105405,1734021038751,-1308.70134818,0.0001096,2]
[345105406,1734021038760,-1308.70134818,0.0001096,2]
[345105407,1734021038769,-1308.70134818,0.0001096,2]
[345105408,1734021038779,-1308.70134818,0.0001096,2]
[345105409,1734021038788,-1308.70134818,0.0001096,2]
[345105410,1734021038798,-1308.70134818,0.0001096,2]
[345105411,1734021038808,-1308.7,0.0001096,2]
[345105412,1734021038817,-420.0,0.00010999,2]
[345105413,1734021038827,-500.0,0.00011522,2]
[345105414,1734021038840,-159.8131402,0.00011873,2]
[345105415,1734021038850,-5991126.30673511,0.000119,2]
[345105416,1734021038860,-587.0,0.00012099,2]
[345105417,1734021038870,-150.0,0.00012323,2]
[345105418,1734021038879,-823.0,0.00013309,2]
[345105419,1734021038888,-514.53483198,0.00013699,2]
[345105420,1734021038901,-300.19144755,0.00013699,2]
[345105421,1734021038910,-1152.0,0.0001464,2]
[345105422,1734021038920,-300.0,0.00015,2]
[345105423,1734021038929,-12412.5,0.0001521,2]
[345105424,1734021038938,-5277.3184797,0.000154,2]
[345105425,1734021038947,-93422.56345801,0.000157,2]
[345105426,1734021038957,-588.0,0.00016103,2]
[345105427,1734021038967,-290.48430206,0.00016731,2]
[345105428,1734021038976,-150.0,0.00017,2]
[345105429,1734021038986,-3120.81,0.0001742,2]
[345105430,1734021038996,-49547.68805,0.0001766,2]
[345105431,1734021039006,-181.64,0.00018168,2]
[345105432,1734021039016,-500.0,0.00019,2]
[345105433,1734021039026,-154.0,0.00019003,2]
[345105434,1734021039036,-154.0,0.00019003,2]
[345105435,1734021039045,-154.0,0.00019003,2]
[345105436,1734021039055,-154.0,0.00019003,2]
[345105437,1734021039064,-154.0,0.00019003,2]
[345105438,1734021039073,-154.0,0.00019003,2]
[345105439,1734021039083,-154.0,0.00019003,2]
[345105440,1734021039092,-154.0,0.00019003,2]
[345105441,1734021039101,-154.0,0.00019003,2]
[345105442,1734021039111,-154.0,0.00019003,2]
[345105443,1734021039120,-154.0,0.00019003,2]
[345105444,1734021039130,-154.0,0.00019003,2]
[345105445,1734021039139,-154.0,0.00019003,2]
[345105446,1734021039153,-154.0,0.00019003,2]
[345105447,1734021039163,-154.0,0.00019003,2]
[345105448,1734021039172,-154.0,0.00019003,2]
[345105449,1734021039182,-154.0,0.00019003,2]
[345105450,1734021039192,-153.0,0.00019003,2]
[345105451,1734021039201,-153.0,0.00019003,2]
[345105452,1734021039210,-153.0,0.00019003,2]
[345105453,1734021039220,-153.0,0.00019003,2]
[345105454,1734021039230,-153.0,0.00019003,2]
[345105455,1734021039240,-153.0,0.00019003,2]
[345105456,1734021039250,-153.0,0.00019003,2]
[345105457,1734021039259,-153.0,0.00019003,2]
[345105458,1734021039269,-153.0,0.00019003,2]
[345105459,1734021039279,-153.0,0.00019003,2]
[345105460,1734021039289,-153.0,0.00019003,2]
[345105461,1734021039298,-153.0,0.00019003,2]
[345105462,1734021039308,-153.0,0.00019003,2]
[345105463,1734021039318,-154.0,0.00019003,2]
[345105464,1734021039328,-154.0,0.00019003,2]
[345105465,1734021039337,-154.0,0.00019003,2]
[345105466,1734021039349,-154.0,0.00019003,2]
[345105467,1734021039358,-154.0,0.00019003,2]
[345105468,1734021039367,-154.0,0.00019003,2]
[345105469,1734021039377,-154.0,0.00019003,2]
[345105470,1734021039388,-154.0,0.00019003,2]
[345105471,1734021039401,-154.0,0.00019003,2]
[345105472,1734021039411,-154.0,0.00019003,2]
[345105473,1734021039420,-154.0,0.00019003,2]
[345105474,1734021039431,-154.0,0.00019003,2]
[345105475,1734021039441,-154.0,0.00019003,2]
[345105476,1734021039450,-154.0,0.00019003,2]
[345105477,1734021039460,-153.0,0.00019003,2]
[345105478,1734021039470,-153.0,0.00019003,2]
[345105479,1734021039480,-153.0,0.00019003,2]
[345105480,1734021039489,-153.0,0.00019003,2]
[345105481,1734021039499,-153.0,0.00019003,2]
[345105482,1734021039508,-153.0,0.00019003,2]
[345105483,1734021039518,-153.0,0.00019003,2]
[345105484,1734021039527,-153.0,0.00019003,2]
[345105485,1734021039535,-153.0,0.00019003,2]
[345105486,1734021039545,-153.0,0.00019003,2]
[345105487,1734021039554,-153.0,0.00019003,2]
[345105488,1734021039563,-154.0,0.00019003,2]
[345105489,1734021039572,-154.0,0.00019003,2]
[345105490,1734021039582,-154.0,0.00019003,2]
[345105491,1734021039592,-154.0,0.00019003,2]
[345105492,1734021039602,-154.0,0.00019003,2]
[345105493,1734021039611,-154.0,0.00019003,2]
[345105494,1734021039621,-154.0,0.00019003,2]
[345105495,1734021039631,-154.0,0.00019003,2]
[345105496,1734021039641,-154.0,0.00019003,2]
[345105497,1734021039654,-154.0,0.00019003,2]
[345105498,1734021039664,-154.0,0.00019003,2]
[345105499,1734021039674,-154.0,0.00019003,2]
[345105500,1734021039684,-154.0,0.00019003,2]
[345105501,1734021039693,-154.0,0.00019003,2]
[345105502,1734021039703,-153.0,0.00019003,2]
[345105503,1734021039713,-153.0,0.00019003,2]
[345105504,1734021039722,-153.0,0.00019003,2]
[345105505,1734021039731,-153.0,0.00019003,2]
[345105506,1734021039741,-153.0,0.00019003,2]
[345105507,1734021039750,-153.0,0.00019003,2]
[345105508,1734021039760,-153.0,0.00019003,2]
[345105509,1734021039769,-153.0,0.00019003,2]
[345105510,1734021039779,-153.0,0.00019003,2]
[345105511,1734021039789,-153.0,0.00019003,2]
[345105512,1734021039799,-153.0,0.00019003,2]
[345105513,1734021039809,-302.5,0.00019069,7]
[345105514,1734021039819,-987.01,0.00019178,2]
[345105515,1734021039829,-500.0,0.00019178,2]
[345105516,1734021039843,-211.55,0.00019178,2]
[345105517,1734021039853,-500.0,0.00019178,2]
[345105518,1734021039863,-500.0,0.00019178,2]
[345105519,1734021039872,-500.0,0.00019178,2]
[345105521,1734021039882,-239.45828348,0.00019178,2]
[345105522,1734021039892,-500.0,0.00019178,2]
[345105523,1734021039905,-500.0,0.00019178,2]
[345105524,1734021039915,-500.0,0.00019178,2]
[345105525,1734021039924,-500.0,0.00019178,2]
[345105526,1734021039934,-505.65422026,0.00019178,2]
[345105527,1734021039944,-500.0,0.00019178,2]
[345105528,1734021039953,-500.0,0.00019178,2]
[345105529,1734021039963,-1075.73,0.00019178,2]
[345105530,1734021039976,-500.0,0.00019178,2]
[345105531,1734021039985,-500.0,0.00019178,2]
[345105532,1734021039994,-500.0,0.00019178,2]
[345105533,1734021040003,-5915.79414038,0.00019289,2]
[345105534,1734021040012,-5915.79414037,0.00019289,2]
[345105535,1734021040022,-154.0,0.00019395,2]
[345105536,1734021040032,-154.0,0.00019395,2]
[345105537,1734021040041,-154.0,0.00019395,2]
[345105538,1734021040051,-154.0,0.00019395,2]
[345105539,1734021040060,-154.0,0.00019395,2]
[345105540,1734021040070,-154.0,0.00019395,2]
[345105541,1734021040080,-154.0,0.00019395,2]
[345105542,1734021040089,-154.0,0.00019395,2]
[345105543,1734021040099,-154.0,0.00019395,2]
[345105544,1734021040109,-154.0,0.00019395,2]
[345105545,1734021040119,-154.0,0.00019395,2]
[345105546,1734021040128,-154.0,0.00019395,2]
[345105547,1734021040138,-154.0,0.00019395,2]
[345105548,1734021040152,-154.0,0.00019395,2]